Workbook

Sheet MicrogramsToMilligrams
A1: Convert the following quantities from micrograms to milligrams | I1: Instructions
A2: Micrograms | B2: Milligrams | C2: Result | D2: Correct Answer | I2: 1. Click here to get more numbers
A3: 986 | C3: =IF(B3<>"", IF(B3=D3,"Correct", "Try again")," ") ->  | D3: =A3/1000 -> 0.986 | I3: 2. Your score (out of 30) will appear here
A4: 12 | C4: =IF(B4<>"", IF(B4=D4,"Correct", "Try again")," ") ->  | D4: 0.012 | F4: Number of Questions: | G4: =COUNTA(A3:A32) -> 30 | I4: 3. Enter your answers in the 'Milligrams' column
A5: 566 | C5: =IF(B5<>"", IF(B5=D5,"Correct", "Try again")," ") ->  | D5: 0.566 | F5: Your Score: | G5: =COUNTIF(C3:C32,"=Correct") -> 0 | I5: 4. Check your answers in the 'Result' column
A6: 544 | C6: =IF(B6<>"", IF(B6=D6,"Correct", "Try again")," ") ->  | D6: 0.544 | I6: 5. Return to Step 1 | T6: =F9/1000 -> 0.068
A7: 317 | D7: 0.317 | F7: Example: | T7: =F10/1000 -> 0.003
A8: 21 | D8: 0.021 | F8: Micrograms | G8: Milligrams | H8: Result | T8: =F11/1000 -> 0.028
A9: 1053 | D9: 1.053 | F9: 68 | G9: 0.068 | H9: =IF(G9<>"", IF(G9=T6,"Correct", "Try again")," ") -> Correct
A10: 974 | D10: 0.974 | F10: 3 | G10: 0.003 | H10: =IF(G10<>"", IF(G10=T7,"Correct", "Try again")," ") -> Correct
A11: 556 | D11: 0.556 | F11: 28 | G11: 0.28 | H11: =IF(G11<>"", IF(G11=T8,"Correct", "Try again")," ") -> Try again
A12: 1002 | C12: =IF(B12<>"", IF(B12=D12,"Correct", "Try again")," ") ->  | D12: =A12/1000 -> 1.002
A13: 318 | D13: 0.318
A14: 471 | D14: 0.471
A15: 568 | D15: 0.568
A16: 51 | D16: 0.051
A17: 92 | D17: 0.092
A18: 898 | D18: 0.898
A19: 464 | D19: 0.464
A20: 79 | D20: 0.079
A21: 191 | D21: 0.191
A22: 59 | D22: 0.059
A23: 567 | D23: 0.567
A24: 1 | D24: 0.001
A25: 751 | D25: 0.751
A26: 660 | D26: 0.66
A27: 11 | D27: 0.011
A28: 215 | D28: 0.215
A29: 506 | D29: 0.506
A30: 518 | D30: 0.518
A31: 322 | D31: 0.322
A32: 667 | D32: 0.667
A33: 105

Sheet Sheet2 (hidden)
A1: 1
A2: 2
A3: 3
A4: 4
A5: 5
A6: 6
A7: 7
A8: 8
A9: 9
A10: 10
A11: 11
A12: 12
A13: 13
A14: 14
A15: 15
A16: 16
A17: 17
A18: 18
A19: 19
A20: 20
A21: 21
A22: 22
A23: 23
A24: 24
A25: 25
A26: 26
A27: 27
A28: 28
A29: 29
A30: 30
A31: 31
A32: 32
A33: 33
A34: 34
A35: 35
A36: 36
A37: 37
A38: 38
A39: 39
A40: 40
A41: 41
A42: 42
A43: 43
A44: 44
A45: 45
A46: 46
A47: 47
A48: 48
A49: 49
A50: 50
A51: 51
A52: 52
A53: 53
A54: 54
A55: 55
A56: 56
A57: 57
A58: 58
A59: 59
A60: 60
A61: 61
A62: 62
A63: 63
A64: 64
A65: 65
A66: 66
A67: 67
A68: 68
A69: 69
A70: 70
A71: 71
A72: 72
A73: 73
A74: 74
A75: 75
A76: 76
A77: 77
A78: 78
A79: 79
A80: 80
A81: 81
A82: 82
A83: 83
A84: 84
A85: 85
A86: 86
A87: 87
A88: 88
A89: 89
A90: 90
A91: 91
A92: 92
A93: 93
A94: 94
A95: 95
A96: 96
A97: 97
A98: 98
A99: 99
A100: 100
A101: 101
A102: 102
A103: 103
A104: 104
A105: 105
A106: 106
A107: 107
A108: 108
A109: 109
A110: 110
A111: 162
A112: 163
A113: 164
A114: 165
A115: 166
A116: 167
A117: 168
A118: 169
A119: 170
A120: 171
A121: 172
A122: 173
A123: 174
A124: 175
A125: 176
A126: 177
A127: 178
A128: 179
A129: 180
A130: 181
A131: 182
A132: 183
A133: 184
A134: 185
A135: 186
A136: 187
A137: 188
A138: 189
A139: 190
A140: 191
A141: 192
A142: 193
A143: 194
A144: 195
A145: 196
A146: 197
A147: 198
A148: 199
A149: 200
A150: 201
A151: 202
A152: 203
A153: 204
A154: 205
A155: 206
A156: 207
A157: 208
A158: 209
A159: 210
A160: 211
A161: 212
A162: 213
A163: 214
A164: 215
A165: 216
A166: 217
A167: 218
A168: 278
A169: 279
A170: 280
A171: 281
A172: 282
A173: 283
A174: 284
A175: 285
A176: 286
A177: 287
A178: 288
A179: 289
A180: 290
A181: 291
A182: 292
A183: 293
A184: 294
A185: 295
A186: 296
A187: 297
A188: 298
A189: 299
A190: 300
A191: 301
A192: 302
A193: 303
A194: 304
A195: 305
A196: 306
A197: 307
A198: 308
A199: 309
A200: 310
... 549 more rows

Sheet MilligramsToMicrograms
A1: Convert the following quantities from milligrams to micrograms | I1: Instructions
A2: Milligrams | B2: Micrograms | C2: Result | D2: Correct Answer | I2: 1. Click here to get more numbers
A3: 1.09 | C3: =IF(B3<>"", IF(B3=D3,"Correct", "Try again")," ") ->  | D3: =A3*1000 -> 1090 | I3: 2. Your score (out of 30) will appear here
A4: 0.596 | C4: =IF(B4<>"", IF(B4=D4,"Correct", "Try again")," ") ->  | D4: =A4*1000 -> 596 | F4: Number of Questions: | G4: =COUNTA(A3:A32) -> 30 | I4: 3. Enter your answers in the 'Micrograms' column
A5: 0.17 | C5: =IF(B5<>"", IF(B5=D5,"Correct", "Try again")," ") ->  | D5: 170 | F5: Your Score: | G5: =COUNTIF(C3:C32,"=Correct") -> 0 | I5: 4. Check your answers in the 'Result' column
A6: 0.868 | C6: =IF(B6<>"", IF(B6=D6,"Correct", "Try again")," ") ->  | D6: 868 | I6: 5. Return to Step 1 | T6: =F9*1000 -> 25
A7: 0.967 | D7: 967 | F7: Example: | T7: =F10*1000 -> 1
A8: 0.761 | D8: 761 | F8: Milligrams | G8: Micrograms | H8: Result | T8: =F11*1000 -> 28
A9: 1.02 | D9: 1020 | F9: 0.025 | G9: 25 | H9: =IF(G9<>"", IF(G9=T6,"Correct", "Try again")," ") -> Correct
A10: 0.131 | D10: 131 | F10: 0.001 | G10: 1 | H10: =IF(G10<>"", IF(G10=T7,"Correct", "Try again")," ") -> Correct
A11: 1.039 | D11: 1039 | F11: 0.028 | G11: 0.28 | H11: =IF(G11<>"", IF(G11=T8,"Correct", "Try again")," ") -> Try again
A12: 0.188 | D12: 188
A13: 0.004 | D13: 4
A14: 0.05 | D14: 50
A15: 0.047 | D15: 47
A16: 1.028 | D16: 1028
A17: 0.429 | D17: 429
A18: 0.55 | D18: 550
A19: 0.09 | D19: 90
A20: 0.087 | D20: 87
A21: 0.14 | D21: 140
A22: 0.037 | D22: 37
A23: 0.909 | D23: 909
A24: 0.664 | D24: 664
A25: 0.703 | D25: 703
A26: 0.208 | D26: 208
A27: 0.572 | D27: 572
A28: 0.966 | D28: 966
A29: 0.98 | D29: 980
A30: 0.462 | D30: 462
A31: 0.003 | D31: 3
A32: 0.067 | D32: 67
A33: 0.785

Sheet Sheet4 (hidden)
A1: 0.001
A2: 0.002
A3: 0.003
A4: 0.004
A5: 0.005
A6: 0.006
A7: 0.007
A8: 0.008
A9: 0.009
A10: 0.01
A11: 0.011
A12: 0.012
A13: 0.013
A14: 0.014
A15: 0.015
A16: 0.016
A17: 0.017
A18: 0.018
A19: 0.019
A20: 0.02
A21: 0.021
A22: 0.022
A23: 0.023
A24: 0.024
A25: 0.025
A26: 0.026
A27: 0.027
A28: 0.028
A29: 0.029
A30: 0.03
A31: 0.031
A32: 0.032
A33: 0.033
A34: 0.034
A35: 0.035
A36: 0.036
A37: 0.037
A38: 0.038
A39: 0.039
A40: 0.04
A41: 0.041
A42: 0.042
A43: 0.043
A44: 0.044
A45: 0.045
A46: 0.046
A47: 0.047
A48: 0.048
A49: 0.049
A50: 0.05
A51: 0.051
A52: 0.052
A53: 0.053
A54: 0.054
A55: 0.055
A56: 0.056
A57: 0.057
A58: 0.058
A59: 0.059
A60: 0.06
A61: 0.061
A62: 0.062
A63: 0.063
A64: 0.064
A65: 0.065
A66: 0.066
A67: 0.067
A68: 0.068
A69: 0.069
A70: 0.07
A71: 0.071
A72: 0.072
A73: 0.073
A74: 0.074
A75: 0.075
A76: 0.076
A77: 0.077
A78: 0.078
A79: 0.079
A80: 0.08
A81: 0.081
A82: 0.082
A83: 0.083
A84: 0.084
A85: 0.085
A86: 0.086
A87: 0.087
A88: 0.088
A89: 0.089
A90: 0.09
A91: 0.091
A92: 0.092
A93: 0.093
A94: 0.094
A95: 0.095
A96: 0.096
A97: 0.097
A98: 0.098
A99: 0.099
A100: 0.1
A101: 0.101
A102: 0.102
A103: 0.103
A104: 0.104
A105: 0.105
A106: 0.106
A107: 0.107
A108: 0.108
A109: 0.109
A110: 0.11
A111: 0.12
A112: 0.121
A113: 0.122
A114: 0.123
A115: 0.124
A116: 0.125
A117: 0.126
A118: 0.127
A119: 0.128
A120: 0.129
A121: 0.13
A122: 0.131
A123: 0.132
A124: 0.133
A125: 0.134
A126: 0.135
A127: 0.136
A128: 0.137
A129: 0.138
A130: 0.139
A131: 0.14
A132: 0.15
A133: 0.151
A134: 0.152
A135: 0.153
A136: 0.154
A137: 0.155
A138: 0.156
A139: 0.157
A140: 0.158
A141: 0.159
A142: 0.16
A143: 0.17
A144: 0.18
A145: 0.181
A146: 0.182
A147: 0.183
A148: 0.184
A149: 0.185
A150: 0.186
A151: 0.187
A152: 0.188
A153: 0.189
A154: 0.19
A155: 0.2
A156: 0.201
A157: 0.202
A158: 0.203
A159: 0.204
A160: 0.205
A161: 0.206
A162: 0.207
A163: 0.208
A164: 0.209
A165: 0.21
A166: 0.22
A167: 0.23
A168: 0.231
A169: 0.232
A170: 0.233
A171: 0.234
A172: 0.235
A173: 0.236
A174: 0.237
A175: 0.238
A176: 0.239
A177: 0.24
A178: 0.25
A179: 0.26
A180: 0.261
A181: 0.262
A182: 0.263
A183: 0.264
A184: 0.265
A185: 0.266
A186: 0.267
A187: 0.268
A188: 0.269
A189: 0.27
A190: 0.271
A191: 0.272
A192: 0.273
A193: 0.274
A194: 0.275
A195: 0.276
A196: 0.277
A197: 0.278
A198: 0.279
A199: 0.28
A200: 0.29
... 550 more rows

Sheet MilligramsToGrams
A1: Convert the following quantities from milligrams to grams | I1: Instructions
A2: Milligrams | B2: Grams | C2: Result | D2: Correct Answer | I2: 1. Click here to get more numbers
A3: 906 | C3: =IF(B3<>"", IF(B3=D3,"Correct", "Try again")," ") ->  | D3: =A3/1000 -> 0.906 | I3: 2. Your score (out of 30) will appear here
A4: 1690 | C4: =IF(B4<>"", IF(B4=D4,"Correct", "Try again")," ") ->  | D4: =A4/1000 -> 1.69 | F4: Number of Questions: | G4: 30 | I4: 3. Enter your answers in the 'Grams' column
A5: 96 | C5: =IF(B5<>"", IF(B5=D5,"Correct", "Try again")," ") ->  | D5: 0.096 | F5: Your Score: | G5: =COUNTIF((C3:C32),"Correct") -> 0 | I5: 4. Check your answers in the 'Result' column
A6: 1592 | C6: =IF(B6<>"", IF(B6=D6,"Correct", "Try again")," ") ->  | D6: 1.592 | I6: 5. Return to Step 1 | T6: 25
A7: 85 | C7: =IF(B7<>"", IF(B7=D7,"Correct", "Try again")," ") ->  | D7: 0.085 | F7: Example: | T7: 1
A8: 772 | C8: =IF(B8<>"", IF(B8=D8,"Correct", "Try again")," ") ->  | D8: 0.772 | F8: Milligrams | G8: Grams | H8: Result | T8: 28
A9: 90 | C9: =IF(B9<>"", IF(B9=D9,"Correct", "Try again")," ") ->  | D9: 0.09 | F9: 637 | G9: 0.637 | H9: Correct
A10: 113 | C10: =IF(B10<>"", IF(B10=D10,"Correct", "Try again")," ") ->  | D10: 0.113 | F10: 4 | G10: 0.004 | H10: Correct
A11: 76 | C11: =IF(B11<>"", IF(B11=D11,"Correct", "Try again")," ") ->  | D11: 0.076 | F11: 74 | G11: 0.74 | H11: Try again
A12: 1226 | C12: =IF(B12<>"", IF(B12=D12,"Correct", "Try again")," ") ->  | D12: 1.226
A13: 870 | C13: =IF(B13<>"", IF(B13=D13,"Correct", "Try again")," ") ->  | D13: 0.87
A14: 273 | C14: =IF(B14<>"", IF(B14=D14,"Correct", "Try again")," ") ->  | D14: 0.273
A15: 19 | C15: =IF(B15<>"", IF(B15=D15,"Correct", "Try again")," ") ->  | D15: 0.019
A16: 12 | C16: =IF(B16<>"", IF(B16=D16,"Correct", "Try again")," ") ->  | D16: 0.012
A17: 1373 | C17: =IF(B17<>"", IF(B17=D17,"Correct", "Try again")," ") ->  | D17: 1.373
A18: 88 | C18: =IF(B18<>"", IF(B18=D18,"Correct", "Try again")," ") ->  | D18: 0.088
A19: 907 | C19: =IF(B19<>"", IF(B19=D19,"Correct", "Try again")," ") ->  | D19: 0.907
A20: 77 | C20: =IF(B20<>"", IF(B20=D20,"Correct", "Try again")," ") ->  | D20: 0.077
A21: 1402 | C21: =IF(B21<>"", IF(B21=D21,"Correct", "Try again")," ") ->  | D21: 1.402
A22: 11 | C22: =IF(B22<>"", IF(B22=D22,"Correct", "Try again")," ") ->  | D22: 0.011
A23: 1703 | C23: =IF(B23<>"", IF(B23=D23,"Correct", "Try again")," ") ->  | D23: 1.703
A24: 1408 | C24: =IF(B24<>"", IF(B24=D24,"Correct", "Try again")," ") ->  | D24: 1.408
A25: 1181 | C25: =IF(B25<>"", IF(B25=D25,"Correct", "Try again")," ") ->  | D25: 1.181
A26: 9 | C26: =IF(B26<>"", IF(B26=D26,"Correct", "Try again")," ") ->  | D26: 0.009
A27: 2 | C27: =IF(B27<>"", IF(B27=D27,"Correct", "Try again")," ") ->  | D27: 0.002
A28: 6 | C28: =IF(B28<>"", IF(B28=D28,"Correct", "Try again")," ") ->  | D28: 0.006
A29: 1670 | C29: =IF(B29<>"", IF(B29=D29,"Correct", "Try again")," ") ->  | D29: 1.67
A30: 1219 | C30: =IF(B30<>"", IF(B30=D30,"Correct", "Try again")," ") ->  | D30: 1.219
A31: 63 | C31: =IF(B31<>"", IF(B31=D31,"Correct", "Try again")," ") ->  | D31: 0.063
A32: 29 | C32: =IF(B32<>"", IF(B32=D32,"Correct", "Try again")," ") ->  | D32: 0.029
A33: 294

Sheet Sheet6 (hidden)
A1: 1
A2: 2
A3: 3
A4: 4
A5: 5
A6: 6
A7: 7
A8: 8
A9: 9
A10: 10
A11: 11
A12: 12
A13: 13
A14: 14
A15: 15
A16: 16
A17: 17
A18: 18
A19: 19
A20: 20
A21: 21
A22: 22
A23: 23
A24: 24
A25: 25
A26: 26
A27: 27
A28: 28
A29: 29
A30: 30
A31: 31
A32: 32
A33: 33
A34: 34
A35: 35
A36: 36
A37: 37
A38: 38
A39: 39
A40: 40
A41: 41
A42: 42
A43: 43
A44: 44
A45: 45
A46: 46
A47: 47
A48: 48
A49: 49
A50: 50
A51: 51
A52: 52
A53: 53
A54: 54
A55: 55
A56: 56
A57: 57
A58: 58
A59: 59
A60: 60
A61: 61
A62: 62
A63: 63
A64: 64
A65: 65
A66: 66
A67: 67
A68: 68
A69: 69
A70: 70
A71: 71
A72: 72
A73: 73
A74: 74
A75: 75
A76: 76
A77: 77
A78: 78
A79: 79
A80: 80
A81: 81
A82: 82
A83: 83
A84: 84
A85: 85
A86: 86
A87: 87
A88: 88
A89: 89
A90: 90
A91: 91
A92: 92
A93: 93
A94: 94
A95: 95
A96: 96
A97: 97
A98: 98
A99: 99
A100: 100
A101: 101
A102: 102
A103: 103
A104: 104
A105: 105
A106: 106
A107: 107
A108: 108
A109: 109
A110: 110
A111: 111
A112: 112
A113: 113
A114: 114
A115: 115
A116: 116
A117: 117
A118: 1
A119: 2
A120: 3
A121: 4
A122: 5
A123: 6
A124: 7
A125: 8
A126: 9
A127: 10
A128: 11
A129: 12
A130: 13
A131: 14
A132: 15
A133: 16
A134: 17
A135: 18
A136: 19
A137: 20
A138: 21
A139: 22
A140: 23
A141: 24
A142: 25
A143: 26
A144: 27
A145: 28
A146: 29
A147: 30
A148: 31
A149: 32
A150: 33
A151: 34
A152: 35
A153: 36
A154: 37
A155: 38
A156: 39
A157: 40
A158: 41
A159: 42
A160: 43
A161: 44
A162: 45
A163: 46
A164: 47
A165: 48
A166: 49
A167: 50
A168: 168
A169: 169
A170: 170
A171: 171
A172: 172
A173: 173
A174: 174
A175: 175
A176: 176
A177: 177
A178: 178
A179: 179
A180: 180
A181: 181
A182: 182
A183: 183
A184: 184
A185: 185
A186: 186
A187: 187
A188: 188
A189: 189
A190: 190
A191: 191
A192: 192
A193: 193
A194: 194
A195: 195
A196: 196
A197: 197
A198: 198
A199: 199
A200: 200
... 1550 more rows

Sheet GramsToMilligrams
A1: Convert the following quantities from grams to milligrams | I1: Instructions
A2: Grams | B2: Milligrams | C2: Result | D2: Correct Answer | I2: 1. Click here to get more numbers
A3: 0.532 | C3: =IF(B3<>"", IF(B3=D3,"Correct", "Try again")," ") ->  | D3: =A3*1000 -> 532 | I3: 2. Your score (out of 30) will appear here
A4: 0.616 | C4: =IF(B4<>"", IF(B4=D4,"Correct", "Try again")," ") ->  | D4: =A4*1000 -> 616 | F4: Number of Questions: | G4: 30 | I4: 3. Enter your answers in the 'Milligrams' column
A5: 0.09 | C5: =IF(B5<>"", IF(B5=D5,"Correct", "Try again")," ") ->  | D5: 90 | F5: Your Score: | G5: =COUNTIF(C3:C32,"Correct") -> 0 | I5: 4. Check your answers in the 'Result' column
A6: 0.185 | D6: 185 | I6: 5. Return to Step 1 | T6: 25
A7: 0.284 | D7: 284 | F7: Example: | T7: 1
A8: 0.019 | D8: 19 | F8: Grams | G8: Milligrams | H8: Result | T8: 28
A9: 0.153 | D9: 153 | F9: 0.637 | G9: 637 | H9: Correct
A10: 0.005 | D10: 5 | F10: 0.004 | G10: 4 | H10: Correct
A11: 0.549 | D11: 549 | F11: 0.074 | G11: 0.74 | H11: Try again
A12: 0.559 | D12: 559
A13: 0.096 | D13: 96
A14: 0.043 | D14: 43
A15: 0.406 | D15: 406
A16: 0.059 | D16: 59
A17: 0.01 | D17: 10
A18: 0.604 | D18: 604
A19: 0.518 | D19: 518
A20: 0.597 | D20: 597
A21: 0.33 | D21: 330
A22: 0.082 | D22: 82
A23: 0.085 | D23: 85
A24: 0.576 | D24: 576
A25: 0.432 | D25: 432
A26: 0.733 | D26: 733
A27: 0.163 | D27: 163
A28: 0.06 | D28: 60
A29: 0.244 | D29: 244
A30: 0.073 | D30: 73
A31: 0.952 | D31: 952
A32: 0.346 | D32: 346
A33: 0.685
C69: =IF(B69<>"", IF(B69=D69,"Correct", "Try again")," ") -> 
C133: =IF(B133<>"", IF(B133=D133,"Correct", "Try again")," ") -> 
C197: =IF(B197<>"", IF(B197=D197,"Correct", "Try again")," ") -> 
C261: =IF(B261<>"", IF(B261=D261,"Correct", "Try again")," ") -> 
C325: =IF(B325<>"", IF(B325=D325,"Correct", "Try again")," ") -> 
C389: =IF(B389<>"", IF(B389=D389,"Correct", "Try again")," ") -> 
C453: =IF(B453<>"", IF(B453=D453,"Correct", "Try again")," ") -> 
C517: =IF(B517<>"", IF(B517=D517,"Correct", "Try again")," ") -> 
C581: =IF(B581<>"", IF(B581=D581,"Correct", "Try again")," ") -> 
C645: =IF(B645<>"", IF(B645=D645,"Correct", "Try again")," ") -> 
C709: =IF(B709<>"", IF(B709=D709,"Correct", "Try again")," ") -> 
C773: =IF(B773<>"", IF(B773=D773,"Correct", "Try again")," ") -> 
C837: =IF(B837<>"", IF(B837=D837,"Correct", "Try again")," ") -> 
C901: =IF(B901<>"", IF(B901=D901,"Correct", "Try again")," ") -> 
C965: =IF(B965<>"", IF(B965=D965,"Correct", "Try again")," ") -> 
C1029: =IF(B1029<>"", IF(B1029=D1029,"Correct", "Try again")," ") -> 
C1093: =IF(B1093<>"", IF(B1093=D1093,"Correct", "Try again")," ") -> 
C1157: =IF(B1157<>"", IF(B1157=D1157,"Correct", "Try again")," ") -> 
C1221: =IF(B1221<>"", IF(B1221=D1221,"Correct", "Try again")," ") -> 
C1285: =IF(B1285<>"", IF(B1285=D1285,"Correct", "Try again")," ") -> 
C1349: =IF(B1349<>"", IF(B1349=D1349,"Correct", "Try again")," ") -> 
C1413: =IF(B1413<>"", IF(B1413=D1413,"Correct", "Try again")," ") -> 
C1477: =IF(B1477<>"", IF(B1477=D1477,"Correct", "Try again")," ") -> 
C1541: =IF(B1541<>"", IF(B1541=D1541,"Correct", "Try again")," ") -> 
C1605: =IF(B1605<>"", IF(B1605=D1605,"Correct", "Try again")," ") -> 
C1669: =IF(B1669<>"", IF(B1669=D1669,"Correct", "Try again")," ") -> 
C1733: =IF(B1733<>"", IF(B1733=D1733,"Correct", "Try again")," ") -> 
C1797: =IF(B1797<>"", IF(B1797=D1797,"Correct", "Try again")," ") -> 
C1861: =IF(B1861<>"", IF(B1861=D1861,"Correct", "Try again")," ") -> 
C1925: =IF(B1925<>"", IF(B1925=D1925,"Correct", "Try again")," ") -> 
C1989: =IF(B1989<>"", IF(B1989=D1989,"Correct", "Try again")," ") -> 
... 36 more rows

Sheet Sheet8 (hidden)
A1: 0.001
A2: 0.002
A3: 0.003
A4: 0.004
A5: 0.005
A6: 0.006
A7: 0.007
A8: 0.008
A9: 0.009
A10: 0.01
A11: 0.011
A12: 0.012
A13: 0.013
A14: 0.014
A15: 0.015
A16: 0.016
A17: 0.017
A18: 0.018
A19: 0.019
A20: 0.02
A21: 0.021
A22: 0.022
A23: 0.023
A24: 0.024
A25: 0.025
A26: 0.026
A27: 0.027
A28: 0.028
A29: 0.029
A30: 0.03
A31: 0.031
A32: 0.032
A33: 0.033
A34: 0.034
A35: 0.035
A36: 0.036
A37: 0.037
A38: 0.038
A39: 0.039
A40: 0.04
A41: 0.041
A42: 0.042
A43: 0.043
A44: 0.044
A45: 0.045
A46: 0.046
A47: 0.047
A48: 0.048
A49: 0.049
A50: 0.05
A51: 0.051
A52: 0.052
A53: 0.053
A54: 0.054
A55: 0.055
A56: 0.056
A57: 0.057
A58: 0.058
A59: 0.059
A60: 0.06
A61: 0.061
A62: 0.062
A63: 0.063
A64: 0.064
A65: 0.065
A66: 0.066
A67: 0.067
A68: 0.068
A69: 0.069
A70: 0.07
A71: 0.071
A72: 0.072
A73: 0.073
A74: 0.074
A75: 0.075
A76: 0.076
A77: 0.077
A78: 0.078
A79: 0.079
A80: 0.08
A81: 0.081
A82: 0.082
A83: 0.083
A84: 0.084
A85: 0.085
A86: 0.086
A87: 0.087
A88: 0.088
A89: 0.089
A90: 0.09
A91: 0.091
A92: 0.092
A93: 0.093
A94: 0.094
A95: 0.095
A96: 0.096
A97: 0.097
A98: 0.098
A99: 0.099
A100: 0.1
A101: 0.101
A102: 0.102
A103: 0.103
A104: 0.104
A105: 0.105
A106: 0.106
A107: 0.107
A108: 0.108
A109: 0.109
A110: 0.11
A111: 0.111
A112: 0.112
A113: 0.113
A114: 0.114
A115: 0.115
A116: 0.116
A117: 0.117
A118: 0.118
A119: 0.119
A120: 0.12
A121: 0.121
A122: 0.122
A123: 0.123
A124: 0.124
A125: 0.125
A126: 0.126
A127: 0.127
A128: 0.128
A129: 0.129
A130: 0.13
A131: 0.131
A132: 0.132
A133: 0.133
A134: 0.134
A135: 0.135
A136: 0.136
A137: 0.137
A138: 0.138
A139: 0.139
A140: 0.14
A141: 0.141
A142: 0.142
A143: 0.143
A144: 0.144
A145: 0.145
A146: 0.146
A147: 0.147
A148: 0.148
A149: 0.149
A150: 0.15
A151: 0.151
A152: 0.152
A153: 0.153
A154: 0.154
A155: 0.155
A156: 0.156
A157: 0.157
A158: 0.158
A159: 0.159
A160: 0.16
A161: 0.161
A162: 0.162
A163: 0.163
A164: 0.164
A165: 0.165
A166: 0.166
A167: 0.167
A168: 0.168
A169: 0.169
A170: 0.17
A171: 0.171
A172: 0.172
A173: 0.173
A174: 0.174
A175: 0.175
A176: 0.176
A177: 0.177
A178: 0.178
A179: 0.179
A180: 0.18
A181: 0.181
A182: 0.182
A183: 0.183
A184: 0.184
A185: 0.185
A186: 0.186
A187: 0.187
A188: 0.188
A189: 0.189
A190: 0.19
A191: 0.191
A192: 0.192
A193: 0.193
A194: 0.194
A195: 0.195
A196: 0.196
A197: 0.197
A198: 0.198
A199: 0.199
A200: 0.2
... 1158 more rows
